bitfinex-derivatives/quotes_SOLF0:USTF0_20250909
["timestamp","ask_amount","ask_price","bid_price","bid_amount"]
[1757435448539,7.05,213.78,213.69,4.16]
[1757435451937,10.23076499,213.89,213.69,4.16]
[1757435452143,19.33,213.88,213.69,4.16]
[1757435452347,7.05,213.86,213.69,4.16]
[1757435452837,7.05,213.86,213.7,3.86859784]
[1757435453034,7.05,213.86,213.71,4.16]
[1757435453238,7.05,213.86,213.72,4.16]
[1757435453437,7.05,213.91,213.73,3.86859784]
[1757435453638,7.05,213.91,213.74,3.86859784]
[1757435453835,7.05,213.91,213.76,4.16]
[1757435454939,7.05,213.91,213.78,3.86859784]
[1757435455143,7.05,213.91,213.79,4.16]
[1757435458339,4.2076,213.88,213.79,4.16]
[1757435458640,7.05,213.87,213.75,4.16]
[1757435459038,4.208,213.86,213.75,4.16]
[1757435459338,7.05,213.85,213.75,4.16]
[1757435460643,7.05,213.92,213.75,4.16]
[1757435461338,7.05,213.89,213.75,4.16]
[1757435464546,7.05,213.89,213.73,38.84859784]
[1757435464547,7.05,213.89,213.76,8.02859784]
[1757435464737,7.05,213.89,213.77,4.16]
[1757435466340,7.05,213.92,213.77,4.16]
[1757435466539,7.05,213.92,213.79,3.86859784]
[1757435466740,7.05,214.02,213.83,4.16]
[1757435466940,7.05,214.03,213.85,4.16]
[1757435467546,7.05,214.0,213.85,4.16]
[1757435468847,11.2552,214.0,213.85,4.16]
[1757435469042,7.05,214.0,213.85,4.16]
[1757435469447,7.05,214.0,213.86,4.16]
[1757435469751,318.5444,214.04,213.91,4.16]
[1757435469752,0.03270575,213.95,213.91,4.16]
[1757435469941,0.03270575,213.95,213.9,0.03485118]
[1757435470142,7.05,214.04,213.88,4.16]
[1757435470342,7.05,214.04,213.9,6.11603112]
[1757435470541,7.05,214.04,213.91,4.16]
[1757435470945,6.11603112,214.07,213.87,39.78]
[1757435471142,7.05,213.98,213.87,4.16]
[1757435471847,6.11603112,214.03,213.83,318.46]
[1757435472446,7.05,213.95,213.83,318.46]
[1757435473245,7.05,213.95,213.84,4.16]
[1757435477349,6.11603112,214.06,213.86,6.11603112]
[1757435477556,19.39,214.05,213.87,4.13]
[1757435477753,7.37,214.05,213.89,4.13]
[1757435477956,7.37,214.01,213.89,4.13]
[1757435478349,11.5751,214.01,213.89,4.13]
[1757435479353,7.37,214.01,213.89,4.13]
[1757435481060,11.5751,214.01,213.89,4.13]
[1757435481456,7.37,214.01,213.89,4.13]
[1757435481762,7.37,214.01,213.89,6.11603112]
[1757435481962,7.37,214.01,213.9,4.13]
[1757435482455,7.37,214.01,213.9,120.79]
[1757435482660,7.37,214.06,213.9,120.79]
[1757435483262,12.64,214.07,213.9,120.79]
[1757435483455,4.2049,214.02,213.9,120.79]
[1757435483652,7.37,214.01,213.9,120.79]
[1757435484659,7.37,214.0,213.9,120.79]
[1757435484866,4.2052,214.01,213.9,120.79]
[1757435485065,7.37,214.0,213.9,120.79]
[1757435487166,7.37,213.99,213.9,120.79]
[1757435488359,7.37,213.97,213.86,4.13]
[1757435488559,7.37,213.97,213.87,4.13]
[1757435490465,11.576,213.97,213.87,4.13]
[1757435490971,7.37,213.97,213.87,4.13]
[1757435494377,7.37,213.97,213.89,2.54596118]
[1757435495677,9.91596118,214.01,213.93,2.54596118]
[1757435496977,7.37,214.01,213.95,2.54596118]
[1757435500780,7.37,214.01,213.93,2.54596118]
[1757435502879,7.37,213.99,213.93,2.54596118]
[1757435512190,7.63,214.02,213.96,4.15]
[1757435512787,7.63,214.02,213.95,2.54596118]
[1757435516898,7.63,214.02,213.98,4.15]
[1757435517194,7.63,214.04,213.99,2.54596118]
[1757435517394,7.63,214.06,213.99,2.54596118]
[1757435518196,11.8341,214.06,213.99,2.54596118]
[1757435518596,2.54596118,214.05,213.92,4.15]
[1757435518798,7.63,214.04,213.96,2.54596118]
[1757435520098,11.8345,214.04,213.96,2.54596118]
[1757435520800,7.63,214.04,213.96,2.54596118]
[1757435521395,7.63,214.02,213.94,2.54596118]
[1757435521800,34.36,214.09,213.91,4.15]
[1757435521801,7.63,213.98,213.91,4.15]
[1757435522101,7.63,213.98,213.91,6.69596118]
[1757435522493,7.63,213.98,213.95,6.69596118]
[1757435522996,7.63,213.98,213.95,2.54596118]
[1757435523200,2.54596118,214.0,213.92,2.54596118]
[1757435523405,7.63,213.99,213.92,2.54596118]
[1757435523800,10.17596118,213.99,213.92,2.54596118]
[1757435524001,5.24796735,214.05,213.89,3.87347759]
[1757435524301,7.63,213.94,213.87,6.69596118]
[1757435524699,7.63,213.94,213.87,4.15]
[1757435524908,2.54596118,213.93,213.85,3.87347759]
[1757435525106,2.54596118,213.93,213.86,6.69596118]
[1757435525294,7.63,213.94,213.86,6.69596118]
[1757435525494,7.63,213.94,213.86,4.15]
[1757435525695,7.63,213.94,213.86,6.69596118]
[1757435525900,7.63,213.94,213.88,2.54596118]
[1757435526399,7.63,213.94,213.85,3.87347759]
[1757435526606,7.63,213.92,213.84,6.41943877]
[1757435526807,7.63,213.9,213.83,3.87347759]
[1757435527108,10.17596118,213.9,213.82,7.98707468]
[1757435527895,7.63,213.9,213.85,2.54596118]
[1757435528196,7.63,213.9,213.82,7.98707468]
[1757435528197,10.6,213.99,213.82,7.71055227]
[1757435528397,10.17596118,213.94,213.86,2.54596118]
[1757435528598,7.63,213.94,213.82,7.71055227]
[1757435528905,7.63,213.91,213.83,2.54596118]
[1757435529105,10.17596118,213.91,213.83,2.54596118]
[1757435529600,10.17596118,213.91,213.82,3.83707468]
[1757435529801,7.63,213.88,213.82,3.83707468]
[1757435530005,7.63,213.86,213.82,3.83707468]
[1757435530605,2.54596118,213.87,213.82,3.83707468]
[1757435530805,7.63,213.86,213.82,3.83707468]
[1757435531004,2.54596118,213.87,213.82,3.83707468]
[1757435531401,7.63,213.86,213.82,3.83707468]
[1757435532001,2.54596118,213.87,213.82,3.83707468]
[1757435532306,7.63,213.89,213.82,3.83707468]
[1757435532709,7.63,213.86,213.82,3.83707468]
[1757435533202,11.61200901,213.88,213.82,3.83707468]
[1757435537617,15.81980901,213.88,213.82,3.83707468]
[1757435539107,4.2079,213.87,213.82,3.83707468]
[1757435539313,7.77,213.86,213.82,3.83707468]
[1757435539911,7.77,213.84,213.82,3.83707468]
[1757435540305,7.77,213.87,213.82,3.83707468]
[1757435541311,3.98200901,213.88,213.82,3.83707468]
[1757435541510,7.77,213.87,213.82,3.83707468]
[1757435541713,3.98200901,213.88,213.82,3.83707468]
[1757435541912,4.2082,213.86,213.82,3.83707468]
[1757435542212,7.77,213.87,213.82,3.83707468]
[1757435542609,7.77,213.83,213.82,3.83707468]
[1757435546707,7.77,213.82,213.71,4.13]
[1757435546907,3.98200901,213.8,213.71,4.13]
[1757435547107,7.77,213.82,213.74,0.03132386]
[1757435547314,124.23,213.82,213.75,4.13]
[1757435547611,0.02949354,213.8,213.74,0.03132386]
[1757435548112,0.02949354,213.8,213.75,4.13]
[1757435548308,0.02949354,213.8,213.74,0.03132386]
[1757435548711,0.02949354,213.8,213.75,4.13]
[1757435549706,0.02949354,213.8,213.74,0.03132386]
[1757435549906,0.02949354,213.8,213.75,4.13]
[1757435550414,0.02949354,213.8,213.74,0.03132386]
[1757435551008,0.02949354,213.8,213.75,4.13]
[1757435553214,0.02949354,213.8,213.75,8.11200901]
[1757435553419,0.02949354,213.8,213.76,4.13]
[1757435558521,0.02949354,213.8,213.78,3.98200901]
[1757435558713,7.77,213.91,213.79,4.13]
[1757435559024,7.77,213.95,213.82,4.11]
[1757435559218,7.77,213.95,213.85,4.11]
[1757435559924,7.77,213.95,213.88,0.03465761]
[1757435573528,7.77,213.95,213.88,4.15465761]
[1757435573727,7.46,213.98,213.88,4.15465761]
[1757435588337,7.46,213.94,213.88,0.03465761]
[1757435588740,7.46,213.94,213.84,4.12]
[1757435588932,7.46,213.94,213.89,0.03148349]
[1757435589439,3.98200901,213.95,213.89,0.03148349]
[1757435589740,7.46,213.94,213.89,0.03148349]
[1757435589938,3.98200901,213.92,213.8,4.12]
[1757435590143,7.46,213.88,213.76,8.13200901]
[1757435590335,3.98200901,213.86,213.76,4.15]
[1757435590533,7.46,213.85,213.76,4.15]
[1757435591738,7.46,213.85,213.71,4.92]
[1757435591940,7.46,213.85,213.72,4.15]
[1757435592437,10.00932833,213.83,213.75,6.69932833]
[1757435593142,7.46,213.93,213.78,4.15]
[1757435593342,2.54932833,213.86,213.79,2.54932833]
[1757435593733,2.54932833,213.86,213.78,6.69932833]
[1757435595339,7.46,213.87,213.81,4.15]
[1757435595533,7.46,213.87,213.82,2.54932833]
[1757435595935,7.64,213.9,213.84,2.54932833]
[1757435596141,7.64,213.9,213.86,2.54932833]
[1757435596446,7.64,213.93,213.87,4.15]
[1757435598145,7.64,213.93,213.88,2.54932833]
[1757435598442,10.18932833,213.99,213.9,2.54932833]
[1757435599943,10.18932833,213.99,213.9,6.69932833]
[1757435600448,10.18932833,213.99,213.92,2.54932833]
[1757435602443,7.64,213.99,213.92,2.54932833]
[1757435602648,7.64,213.99,213.94,6.69932833]
[1757435602851,7.64,213.99,213.95,4.15]
[1757435604646,7.64,214.02,213.95,4.15]
[1757435604954,7.64,214.02,213.94,2.54932833]
[1757435605152,7.64,214.02,213.91,4.15]
[1757435605355,116.3,214.05,213.92,2.54932833]
[1757435605356,7.64,214.0,213.92,2.54932833]
[1757435606252,7.64,214.0,213.84,4.15]
[1757435606253,2.54932833,213.97,213.84,4.15]
[1757435606452,7.64,213.96,213.89,2.54932833]
[1757435607753,10.18932833,213.99,213.92,4.15]
[1757435608552,10.18932833,213.99,213.91,2.54932833]
[1757435608853,10.18932833,213.99,213.85,3.85378776]
[1757435608854,7.64,213.99,213.93,2.54932833]
[1757435610551,314.26,214.07,213.95,6.69932833]
[1757435610552,10.18932833,214.03,213.95,6.69932833]
[1757435611256,10.18932833,214.03,213.95,2.54932833]
[1757435611459,7.64,214.0,213.93,2.54932833]
[1757435611658,2.54932833,213.96,213.87,6.69932833]
[1757435611958,2.54932833,213.94,213.87,6.69932833]
[1757435612753,7.64,213.93,213.85,2.54932833]
[1757435617058,2.54932833,213.92,213.83,4.15]
[1757435617357,7.64,213.91,213.84,2.54932833]
[1757435619062,10.18932833,213.91,213.84,2.54932833]
[1757435619262,7.64,213.91,213.84,2.54932833]
[1757435619462,10.18932833,213.91,213.84,2.54932833]
[1757435619663,10.18932833,213.91,213.83,6.69932833]
[1757435620764,2.54932833,213.9,213.83,6.69932833]
[1757435621765,7.64,213.91,213.83,6.69932833]
[1757435623768,10.18932833,213.91,213.83,6.69932833]
[1757435623963,7.64,213.91,213.85,6.68932833]
[1757435626766,10.18932833,213.91,213.82,2.54932833]
[1757435629466,10.18932833,213.91,213.84,2.54932833]
[1757435629670,7.64,213.91,213.84,2.54932833]
[1757435630662,2.54932833,213.96,213.88,2.54932833]
[1757435630965,7.54,213.95,213.88,2.54932833]
[1757435635275,7.54,213.95,213.9,2.54932833]
[1757435635476,7.54,213.97,213.92,2.54932833]
[1757435635668,7.54,214.01,213.94,2.54932833]
[1757435636868,2.54932833,214.03,213.96,2.54932833]
[1757435637073,7.54,214.02,213.96,2.54932833]
[1757435638376,7.54,214.02,213.93,4.16]
[1757435638573,7.54,214.02,213.95,2.54932833]
[1757435642772,7.54,214.02,213.98,4.16]
[1757435642977,7.54,214.02,213.99,2.54932833]
[1757435643382,7.54,214.02,213.99,6.70932833]
[1757435643874,7.54,214.02,213.99,2.54932833]
[1757435644179,7.54,214.06,213.99,2.54932833]
[1757435645779,2.54932833,214.05,213.97,2.54932833]
[1757435646076,7.54,214.04,213.97,2.54932833]
[1757435651480,7.54,214.04,213.99,2.54932833]
[1757435651680,2.54932833,214.08,214.0,4.16]
[1757435651876,7.54,214.08,214.01,2.54932833]
[1757435652778,10.08932833,214.08,214.01,2.54932833]
[1757435653080,10.08932833,214.08,213.99,2.54932833]
[1757435653678,10.08932833,214.08,213.99,6.69932833]
[1757435654285,7.54,214.08,213.99,4.15]
[1757435656786,7.54,214.08,213.96,3.97410293]
[1757435657282,7.54,214.08,213.97,4.15]
[1757435658782,7.54,214.08,213.99,3.97410293]
[1757435659085,7.54,214.08,214.0,4.15]
[1757435659680,7.01,214.12,214.03,4.15]
[1757435660779,7.01,214.12,214.06,4.15]
[1757435667990,7.01,214.19,214.12,4.15]
[1757435668199,7.01,214.27,214.14,8.12410293]
[1757435668399,7.01,214.27,214.16,3.97410293]
[1757435669790,0.03028696,214.24,214.19,0.03381572]
[1757435670193,7.01,214.23,214.19,0.03381572]
[1757435670494,0.03028696,214.24,214.19,0.03381572]
[1757435670994,7.01,214.23,214.19,0.03381572]
[1757435671196,0.03028696,214.24,214.19,0.03381572]
[1757435671488,7.01,214.23,214.19,0.03381572]
[1757435671895,0.03028696,214.24,214.19,0.03381572]
[1757435672293,7.01,214.23,214.19,0.03381572]
[1757435673800,0.03028696,214.24,214.19,0.03381572]
[1757435674098,7.01,214.23,214.19,0.03381572]
[1757435674598,0.03028696,214.24,214.19,0.03381572]
[1757435674790,7.01,214.23,214.19,0.03381572]
[1757435674995,0.03028696,214.24,214.19,0.03381572]
[1757435675400,7.01,214.23,214.19,0.03381572]
[1757435676801,0.03028696,214.24,214.19,0.03381572]
[1757435677398,7.01,214.23,214.19,0.03381572]
[1757435677694,0.03028696,214.24,214.19,0.03381572]
[1757435677899,7.01,214.23,214.19,0.03381572]
[1757435678093,0.03028696,214.24,214.19,0.03381572]
[1757435678293,7.01,214.23,214.19,0.03381572]
[1757435678494,0.03028696,214.24,214.19,0.03381572]
[1757435678694,7.01,214.23,214.19,0.03381572]
[1757435679500,7.01,214.23,214.19,4.18381572]
[1757435680804,7.01,214.23,214.19,0.03381572]
[1757435683404,7.01,214.23,214.19,4.18381572]
[1757435683805,7.31,214.23,214.19,4.18381572]
[1757435684706,0.03028696,214.24,214.19,4.18381572]
[1757435685107,7.31,214.23,214.19,4.18381572]
[1757435687310,0.03028696,214.24,214.19,4.18381572]
[1757435687511,7.31,214.23,214.19,4.18381572]
[1757435689614,0.03028696,214.24,214.19,4.18381572]
[1757435690313,7.31,214.23,214.19,4.18381572]
[1757435691119,0.03028696,214.24,214.19,4.18381572]
[1757435691814,7.31,214.23,214.19,4.18381572]
[1757435693407,0.03028696,214.24,214.19,4.18381572]
[1757435693609,7.31,214.23,214.19,4.18381572]
[1757435694410,0.03028696,214.24,214.19,4.18381572]
[1757435695013,7.34028696,214.24,214.2,4.13]
[1757435696711,0.03028696,214.24,214.19,0.03381572]
[1757435696917,0.03028696,214.24,214.2,3.97410293]
[1757435697313,0.03028696,214.24,214.19,0.03381572]
[1757435697515,0.03028696,214.24,214.22,4.13]
[1757435698211,0.03028696,214.24,214.21,3.97410293]
[1757435698414,0.03028696,214.24,214.22,4.13]
[1757435698609,0.03028696,214.24,214.19,0.03381572]
[1757435698815,0.03028696,214.24,214.2,3.97410293]
[1757435700611,0.03028696,214.24,214.21,4.13]
[1757435702121,0.03028696,214.24,214.2,3.97410293]
[1757435702322,0.03028696,214.24,214.21,4.13]
[1757435702525,0.03028696,214.24,214.2,3.97410293]
[1757435702726,0.03028696,214.24,214.21,4.13]
[1757435703225,7.31,214.29,214.23,8.10410293]
[1757435703625,7.31,214.37,214.26,8.10410293]
[1757435704419,7.31,214.37,214.29,0.03026272]
[1757435705222,7.31,214.35,214.29,0.03026272]
[1757435712326,0.02968801,214.34,214.29,4.16026272]
[1757435712530,0.02968801,214.34,214.3,4.13]
[1757435712835,7.33968801,214.34,214.3,4.13]
[1757435713530,7.68968801,214.34,214.3,4.13]
[1757435714032,7.66,214.33,214.3,4.13]
[1757435714234,0.02968801,214.34,214.29,0.03026272]
[1757435714430,7.66,214.33,214.3,2.53650922]
[1757435714928,7.66,214.33,214.3,6.66650922]
[1757435715535,7.66,214.33,214.3,2.53650922]
[1757435718531,7.66,214.33,214.29,0.03026272]
[1757435718737,7.66,214.33,214.3,2.53650922]
[1757435719538,0.02968801,214.34,214.3,2.53650922]
[1757435719837,7.66,214.33,214.3,2.53650922]
[1757435720439,7.68968801,214.34,214.31,4.13]
[1757435721141,7.66,214.33,214.3,2.53650922]
[1757435721433,0.02968801,214.34,214.3,2.53650922]
[1757435721638,7.66,214.33,214.3,6.66650922]
[1757435722238,0.02968801,214.34,214.31,4.13]
[1757435722532,0.02968801,214.34,214.32,6.66650922]
[1757435723335,7.68968801,214.34,214.31,2.53650922]
[1757435723537,7.66,214.33,214.31,2.53650922]
[1757435724443,7.68968801,214.34,214.31,2.53650922]
[1757435724643,7.68968801,214.34,214.31,6.66650922]
[1757435725443,7.66,214.33,214.31,2.53650922]
[1757435726840,0.02968801,214.34,214.31,6.66650922]
[1757435727045,7.66,214.33,214.31,2.53650922]
[1757435727448,7.66,214.33,214.29,0.03026272]
[1757435727744,7.66,214.33,214.3,2.53650922]
[1757435729346,7.66,214.33,214.29,0.03026272]
[1757435729544,2.56619723,214.34,214.29,0.03026272]
[1757435729843,7.66,214.33,214.29,0.03026272]
[1757435730037,2.56619723,214.34,214.29,0.03026272]
[1757435730239,7.66,214.33,214.29,0.03026272]
[1757435730746,2.56619723,214.34,214.29,0.03026272]
[1757435731050,7.66,214.33,214.29,0.03026272]
[1757435731250,2.56619723,214.34,214.29,0.03026272]
[1757435731446,7.66,214.33,214.29,0.03026272]
[1757435731952,7.66,214.31,214.29,0.03026272]
[1757435732552,7.66,214.33,214.29,0.03026272]
[1757435732747,0.02968801,214.34,214.29,0.03026272]
[1757435732954,7.66,214.33,214.29,0.03026272]
[1757435733660,2.56619723,214.34,214.29,0.03026272]
[1757435733851,7.66,214.33,214.29,0.03026272]
[1757435734156,2.56619723,214.34,214.29,0.03026272]
[1757435734357,7.66,214.33,214.29,0.03026272]
[1757435734553,2.53650922,214.32,214.29,0.03026272]
[1757435734757,7.66,214.31,214.29,0.03026272]
[1757435734952,7.66,214.33,214.29,0.03026272]
[1757435735158,2.56619723,214.34,214.29,0.03026272]
[1757435735356,7.66,214.33,214.29,0.03026272]
[1757435735556,2.56619723,214.34,214.29,0.03026272]
[1757435735756,7.66,214.33,214.29,0.03026272]
[1757435735949,2.56619723,214.34,214.29,0.03026272]
[1757435736358,7.66,214.33,214.29,0.03026272]
[1757435736557,2.53650922,214.3,214.29,0.03026272]
[1757435736764,10.19650922,214.3,214.29,0.03026272]
[1757435737563,7.66,214.3,214.29,0.03026272]
[1757435738454,7.66,214.3,214.21,4.13]
[1757435738655,2.53650922,214.27,214.19,2.53650922]
[1757435738856,7.66,214.26,214.19,2.53650922]
[1757435741255,7.66,214.26,214.2,4.16]
[1757435743656,7.66,214.26,214.21,2.53650922]
[1757435743961,2.53650922,214.29,214.21,2.53650922]
[1757435744165,7.61,214.28,214.21,2.53650922]
[1757435749764,132.46953675,214.32,214.26,4.16]
[1757435751162,7.61,214.3,214.25,2.53650922]
[1757435751459,7.61,214.3,214.27,0.03199709]
[1757435751864,7.61,214.3,214.22,2.53650922]
[1757435752259,7.61,214.26,214.2,2.53650922]
[1757435752657,7.61,214.26,214.22,6.69650922]
[1757435752858,2.53650922,214.28,214.2,2.53650922]
[1757435753058,7.61,214.27,214.2,2.53650922]
[1757435753368,10.14650922,214.28,214.22,6.69650922]
[1757435754167,10.14650922,214.28,214.22,4.16]
[1757435754367,10.14650922,214.28,214.21,2.53650922]
[1757435755059,7.61,214.28,214.23,2.53650922]
[1757435755368,124.85953675,214.32,214.25,6.69650922]
[1757435755369,7.61,214.31,214.25,6.69650922]
[1757435755963,132.46953675,214.32,214.28,4.16]
[1757435756364,124.85953675,214.32,214.26,2.53650922]
[1757435757171,132.46953675,214.32,214.26,2.53650922]
[1757435759974,132.46953675,214.32,214.25,2.53650922]
[1757435761373,2.53650922,214.3,214.19,7.98368346]
[1757435761574,7.61,214.27,214.19,6.69650922]
[1757435761774,10.14650922,214.27,214.19,6.69650922]
[1757435761974,10.14650922,214.27,214.19,4.16]
[1757435762173,10.14650922,214.27,214.19,6.69650922]
[1757435763877,7.61,214.24,214.17,2.53650922]
[1757435764074,7.61,214.24,214.17,6.69650922]
[1757435770179,7.61,214.26,214.19,2.53650922]
[1757435771785,2.53650922,214.25,214.19,2.53650922]
[1757435771985,7.61,214.24,214.19,2.53650922]
[1757435772185,10.14650922,214.25,214.19,2.53650922]
[1757435773983,11.08,214.33,214.22,4.16]
[1757435774195,7.5,214.35,214.22,4.16]
[1757435774488,7.5,214.3,214.22,4.16]
[1757435774879,7.5,214.3,214.23,3.96554907]
[1757435776091,7.5,214.3,214.22,4.16]
[1757435777389,7.5,214.3,214.17,11.94923253]
[1757435777589,3.96554907,214.31,214.17,11.94923253]
[1757435779193,7.5,214.3,214.17,11.94923253]
[1757435779392,3.96554907,214.31,214.17,11.94923253]
[1757435779588,7.5,214.3,214.17,11.94923253]
[1757435779786,7.5,214.3,214.17,8.12554907]
[1757435782693,11.46554907,214.3,214.17,8.12554907]
[1757435784396,11.46554907,214.3,214.17,3.96554907]
[1757435784596,11.46554907,214.3,214.18,4.16]
[1757435785097,7.5,214.3,214.2,3.96554907]
[1757435785294,131.84104726,214.34,214.26,3.96554907]
[1757435785598,131.84104726,214.34,214.27,4.16]
[1757435787895,0.81219222,214.43,214.27,4.16]
[1757435787896,7.5,214.37,214.27,4.16]
[1757435788999,7.5,214.37,214.23,8.12554907]
[1757435789204,7.5,214.37,214.23,4.16]
[1757435789701,7.5,214.37,214.24,4.16]
[1757435793706,3.96554907,214.35,214.21,7.78923253]
[1757435793902,7.5,214.34,214.21,3.96554907]
[1757435794207,7.5,214.31,214.2,4.16]
[1757435800503,11.46554907,214.31,214.2,4.16]
[1757435800711,7.5,214.3,214.16,64.79094781]
[1757435800903,3.96554907,214.31,214.16,64.79094781]
[1757435801302,7.5,214.3,214.16,64.79094781]
[1757435801610,3.96554907,214.31,214.16,64.79094781]
[1757435802111,7.5,214.3,214.16,64.79094781]
[1757435802701,7.5,214.3,214.16,60.94554907]
[1757435802906,7.5,214.3,214.16,8.12554907]
[1757435803308,3.96554907,214.28,214.16,8.12554907]
[1757435803507,7.62,214.27,214.16,4.16]
[1757435803815,7.62,214.27,214.2,0.03043208]
[1757435803816,0.03446425,214.24,214.2,0.03043208]
[1757435804312,3.96554907,214.23,214.2,0.03043208]
[1757435805511,7.62,214.22,214.2,0.03043208]
[1757435806005,3.96554907,214.23,214.2,0.03043208]
[1757435806309,7.62,214.22,214.2,0.03043208]
[1757435806612,3.96554907,214.23,214.2,0.03043208]
[1757435807613,7.62,214.22,214.2,0.03043208]
[1757435809311,3.96554907,214.23,214.2,0.03043208]
[1757435809520,7.62,214.22,214.2,0.03043208]
[1757435809814,3.96554907,214.23,214.2,0.03043208]
[1757435810015,7.62,214.22,214.2,0.03043208]
[1757435810313,3.96554907,214.23,214.2,0.03043208]
[1757435810509,7.62,214.22,214.2,0.03043208]
[1757435810812,3.96554907,214.23,214.2,0.03043208]
[1757435811008,7.62,214.22,214.2,0.03043208]
[1757435811214,3.96554907,214.23,214.2,0.03043208]
[1757435811509,7.62,214.22,214.2,0.03043208]
[1757435811911,3.96554907,214.23,214.2,0.03043208]
[1757435812814,7.62,214.22,214.2,0.03043208]
[1757435813715,3.96554907,214.23,214.2,0.03043208]
[1757435815616,7.62,214.22,214.2,0.03043208]
[1757435815813,3.96554907,214.23,214.2,0.03043208]
[1757435816414,7.62,214.22,214.2,0.03043208]
[1757435816916,3.96554907,214.23,214.2,0.03043208]
[1757435817117,7.62,214.22,214.2,0.03043208]
[1757435817316,7.62,214.23,214.2,0.03043208]
[1757435817819,0.03446425,214.24,214.2,0.03043208]
[1757435817820,0.03446425,214.24,214.21,4.16]
[1757435818514,7.62,214.33,214.23,4.16]
[1757435819518,5.22333711,214.41,214.23,4.16]
[1757435819719,0.8122017,214.42,214.22,3.96554907]
[1757435819720,7.62,214.37,214.27,4.12]
[1757435821014,124.4795634,214.39,214.32,4.12]
[1757435821618,124.4795634,214.39,214.33,0.03338056]
[1757435822910,7.62,214.38,214.33,0.03338056]
[1757435823313,3.96554907,214.37,214.33,0.03338056]
[1757435823510,7.62,214.36,214.33,0.03338056]
[1757435823718,3.96554907,214.37,214.33,0.03338056]
[1757435823920,7.62,214.36,214.33,0.03338056]
[1757435824317,3.96554907,214.37,214.33,0.03338056]
[1757435825026,7.62,214.36,214.33,0.03338056]
[1757435825526,7.62,214.33,214.2,4.16]
[1757435827415,7.62,214.3,214.16,4.16]
[1757435827621,7.62,214.27,214.16,4.16]
[1757435830418,7.62,214.27,214.16,8.12554907]
[1757435830622,7.62,214.31,214.19,3.96554907]
[1757435830931,7.62,214.31,214.2,4.16]
[1757435834325,2.53790732,214.3,214.22,2.53790732]
[1757435834532,7.62,214.31,214.24,2.53790732]
[1757435837328,0.0357991,214.3,214.26,4.15]
[1757435837536,7.2757991,214.3,214.26,4.15]
[1757435839036,0.0357991,214.3,214.25,0.03444226]
[1757435839236,7.24,214.29,214.25,0.03444226]
[1757435839437,7.24,214.29,214.25,4.18444226]
[1757435842443,7.24,214.29,214.25,0.03444226]
[1757435842744,0.0357991,214.3,214.28,2.53790732]
[1757435842939,0.0357991,214.3,214.29,4.15]
[1757435843339,0.0357991,214.3,214.28,6.68790732]
[1757435843741,0.0357991,214.3,214.25,0.03444226]
[1757435843742,0.0357991,214.3,214.26,4.15]
[1757435844036,7.24,214.29,214.25,2.57234958]
[1757435844242,7.24,214.29,214.25,6.72234958]
[1757435844641,7.24,214.29,214.25,2.57234958]
[1757435844839,0.0357991,214.3,214.25,0.03444226]
[1757435845144,7.24,214.29,214.25,0.03444226]
[1757435845339,0.0357991,214.3,214.25,0.03444226]
[1757435845942,0.0357991,214.3,214.26,6.68790732]
[1757435846342,0.0357991,214.3,214.25,0.03444226]
[1757435846539,0.0357991,214.3,214.25,2.57234958]
[1757435846843,0.0357991,214.3,214.26,4.15]
[1757435847043,0.0357991,214.3,214.27,2.53790732]
[1757435847240,0.0357991,214.3,214.28,4.15]
[1757435847645,0.0357991,214.3,214.27,2.53790732]
[1757435847943,0.0357991,214.3,214.28,4.15]
[1757435848339,0.0357991,214.3,214.27,2.53790732]